[Event "January 2 Late 2024"]
[Site "https://www.chess.com"]
[Date "2024.01.02"]
[Round "6"]
[White "Jimenez Almeida, Luis David"]
[Black "Sevgi, Volkan"]
[Result "0-1"]
[Board "74"]
[TimeControl "180+1"]
[WhiteFideId "22242244"]
[BlackFideId "6325335"]
[WhiteElo "2518"]
[BlackElo "2676"]
[WhiteTeam "ESP"]
[BlackTeam "TUR"]
[WhiteClock "0:00:00"]
[BlackClock "0:00:08"]

1. e4 {[%clk 0:03:00]}  c6 {[%clk 0:02:55]} 2. Nc3 {[%clk 0:02:59]}  d5 {[%clk 0:02:53]} 3. Qf3 {[%clk 0:02:59]}  e6 {[%clk 0:02:47]} 4. Nh3 {[%clk 0:02:53]}  Nd7 {[%clk 0:02:42]} 5. d4 {[%clk 0:02:51]}  dxe4 {[%clk 0:02:35]} 6. Nxe4 {[%clk 0:02:52]}  Ndf6 {[%clk 0:02:34]} 7. c3 {[%clk 0:02:48]}  Nxe4 {[%clk 0:02:28]} 8. Qxe4 {[%clk 0:02:49]}  Nf6 {[%clk 0:02:29]} 9. Qf3 {[%clk 0:02:48]}  Qd5 {[%clk 0:02:26]} 10. Be2 {[%clk 0:02:45]}  Bd6 {[%clk 0:02:15]} 11. Nf4 {[%clk 0:02:42]}  Qxf3 {[%clk 0:02:13]} 12. Bxf3 {[%clk 0:02:43]}  e5 {[%clk 0:02:12]} 13. dxe5 {[%clk 0:02:40]}  Bxe5 {[%clk 0:02:12]} 14. O-O {[%clk 0:02:40]}  O-O {[%clk 0:02:11]} 15. Re1 {[%clk 0:02:40]}  Bd6 {[%clk 0:02:00]} 16. Be3 {[%clk 0:02:20]}  Bf5 {[%clk 0:01:59]} 17. Rad1 {[%clk 0:02:18]}  Rfd8 {[%clk 0:01:59]} 18. Ne2 {[%clk 0:02:07]}  Bc7 {[%clk 0:01:38]} 19. h3 {[%clk 0:02:01]}  a5 {[%clk 0:01:34]} 20. Nd4 {[%clk 0:01:59]}  Bg6 {[%clk 0:01:31]} 21. Bg5 {[%clk 0:01:58]}  a4 {[%clk 0:01:28]} 22. Re7 {[%clk 0:01:51]}  Ne8 {[%clk 0:01:01]} 23. Rde1 {[%clk 0:01:43]}  a3 {[%clk 0:00:40]} 24. b3 {[%clk 0:01:39]}  h6 {[%clk 0:00:25]} 25. Rxc7 {[%clk 0:01:34]}  Nxc7 {[%clk 0:00:20]} 26. Bxd8 {[%clk 0:01:34]}  Rxd8 {[%clk 0:00:21]} 27. Re7 {[%clk 0:01:34]}  Nd5 {[%clk 0:00:22]} 28. Bxd5 {[%clk 0:01:16]}  Rxd5 {[%clk 0:00:21]} 29. Rxb7 {[%clk 0:01:16]}  c5 {[%clk 0:00:22]} 30. Nf3 {[%clk 0:01:17]}  Rd1+ {[%clk 0:00:20]} 31. Kh2 {[%clk 0:01:16]}  Ra1 {[%clk 0:00:20]} 32. Ra7 {[%clk 0:00:36]}  Rxa2 {[%clk 0:00:21]} 33. Ne5 {[%clk 0:00:36]}  Bc2 {[%clk 0:00:20]} 34. b4 {[%clk 0:00:28]}  cxb4 {[%clk 0:00:20]} 35. cxb4 {[%clk 0:00:29]}  Bb3 {[%clk 0:00:19]} 36. Nd3 {[%clk 0:00:24]}  Bd5 {[%clk 0:00:17]} 37. b5 {[%clk 0:00:21]}  Ra1 {[%clk 0:00:15]} 38. b6 {[%clk 0:00:19]}  a2 {[%clk 0:00:12]} 39. Nb4 {[%clk 0:00:19]}  Rb1 {[%clk 0:00:10]} 40. Nxa2 {[%clk 0:00:08]}  Rxb6 {[%clk 0:00:10]} 41. Nc3 {[%clk 0:00:08]}  Be6 {[%clk 0:00:11]} 42. Ne2 {[%clk 0:00:08]}  Rb4 {[%clk 0:00:10]} 43. Kg3 {[%clk 0:00:07]}  g5 {[%clk 0:00:10]} 44. f3 {[%clk 0:00:07]}  Kg7 {[%clk 0:00:10]} 45. Nc1 {[%clk 0:00:07]}  Rd4 {[%clk 0:00:10]} 46. Ne2 {[%clk 0:00:07]}  Rc4 {[%clk 0:00:10]} 47. Ra3 {[%clk 0:00:06]}  h5 {[%clk 0:00:11]} 48. Nc3 {[%clk 0:00:07]}  f5 {[%clk 0:00:10]} 49. Kf2 {[%clk 0:00:07]}  Kf6 {[%clk 0:00:10]} 50. Ne2 {[%clk 0:00:07]}  Ke5 {[%clk 0:00:10]} 51. Re3+ {[%clk 0:00:08]}  Kf6 {[%clk 0:00:10]} 52. Rd3 {[%clk 0:00:08]}  Rc2 {[%clk 0:00:10]} 53. Re3 {[%clk 0:00:08]}  Bc4 {[%clk 0:00:11]} 54. Ke1 {[%clk 0:00:08]}  h4 {[%clk 0:00:07]} 55. Kd1 {[%clk 0:00:06]}  Ra2 {[%clk 0:00:06]} 56. Re8 {[%clk 0:00:05]}  Bb5 {[%clk 0:00:06]} 57. Re3 {[%clk 0:00:04]}  Kg6 {[%clk 0:00:06]} 58. Ke1 {[%clk 0:00:04]}  Kh5 {[%clk 0:00:06]} 59. Re5 {[%clk 0:00:04]}  Bc4 {[%clk 0:00:06]} 60. Kf2 {[%clk 0:00:02]}  Kg6 {[%clk 0:00:06]} 61. Re8 {[%clk 0:00:02]}  Kf7 {[%clk 0:00:06]} 62. Re3 {[%clk 0:00:03]}  Kf6 {[%clk 0:00:07]} 63. Re8 {[%clk 0:00:03]}  Bb5 {[%clk 0:00:08]} 64. Re3 {[%clk 0:00:03]}  Rb2 {[%clk 0:00:08]} 65. Ke1 {[%clk 0:00:02]}  Bc4 {[%clk 0:00:06]} 66. Kf2 {[%clk 0:00:03]}  Be6 {[%clk 0:00:07]} 67. Ke1 {[%clk 0:00:02]}  f4 {[%clk 0:00:07]} 68. Re4 {[%clk 0:00:03]}  Bf5 {[%clk 0:00:07]} 69. Re8 {[%clk 0:00:03]}  Bd3 {[%clk 0:00:08]} 70. Kf2 {[%clk 0:00:01]}  Bb5 {[%clk 0:00:08]} 71. Ke1 {[%clk 0:00:00]}  Bxe8 {[%clk 0:00:08]} 0-1

[Event "January 2 Late 2024"]
[Site "https://www.chess.com"]
[Date "2024.01.02"]
[Round "6"]
[White "Zhu, Jiner"]
[Black "Makaraci, Tunahan"]
[Result "0-1"]
[Board "75"]
[TimeControl "180+1"]
[WhiteFideId "8608059"]
[BlackFideId "6356559"]
[WhiteElo "2675"]
[BlackElo "2518"]
[WhiteTeam "CHN"]
[BlackTeam "TUR"]
[WhiteClock "0:02:14"]
[BlackClock "0:01:48"]

1. c4 {[%clk 0:03:00]}  e6 {[%clk 0:02:59]} 2. Nc3 {[%clk 0:03:01]}  d5 {[%clk 0:03:00]} 3. cxd5 {[%clk 0:03:00]}  exd5 {[%clk 0:03:00]} 4. d4 {[%clk 0:03:01]}  c5 {[%clk 0:03:00]} 5. Nf3 {[%clk 0:02:59]}  Nf6 {[%clk 0:03:00]} 6. dxc5 {[%clk 0:02:57]}  Bxc5 {[%clk 0:02:58]} 7. e3 {[%clk 0:02:57]}  O-O {[%clk 0:02:57]} 8. Bd3 {[%clk 0:02:57]}  Nc6 {[%clk 0:02:58]} 9. Ne2 {[%clk 0:02:53]}  Bg4 {[%clk 0:02:54]} 10. O-O {[%clk 0:02:47]}  Bxf3 {[%clk 0:02:49]} 11. gxf3 {[%clk 0:02:48]}  Ne5 {[%clk 0:02:46]} 12. Nf4 {[%clk 0:02:46]}  Qd7 {[%clk 0:02:21]} 13. a3 {[%clk 0:02:39]}  g5 {[%clk 0:02:19]} 14. Ng2 {[%clk 0:02:35]}  Qh3 {[%clk 0:02:15]} 15. Be2 {[%clk 0:02:31]}  Bd6 {[%clk 0:01:51]} 16. f4 {[%clk 0:02:14]}  Neg4 {[%clk 0:01:48]} 0-1

[Event "January 2 Late 2024"]
[Site "https://www.chess.com"]
[Date "2024.01.02"]
[Round "6"]
[White "Alimpic, Aleksa"]
[Black "Fantinel, Thibault"]
[Result "0-1"]
[Board "78"]
[TimeControl "180+1"]
[WhiteFideId "974323"]
[BlackFideId "663395"]
[WhiteElo "2505"]
[BlackElo "2667"]
[WhiteTeam "SRB"]
[BlackTeam "FRA"]
[WhiteClock "0:00:02"]
[BlackClock "0:00:49"]

1. d4 {[%clk 0:02:59]}  Nf6 {[%clk 0:03:00]} 2. c4 {[%clk 0:02:59]}  b6 {[%clk 0:03:00]} 3. Nc3 {[%clk 0:02:58]}  Bb7 {[%clk 0:03:00]} 4. d5 {[%clk 0:02:51]}  e6 {[%clk 0:03:00]} 5. a3 {[%clk 0:02:52]}  Bd6 {[%clk 0:02:57]} 6. Nf3 {[%clk 0:02:52]}  O-O {[%clk 0:02:57]} 7. g3 {[%clk 0:02:51]}  c6 {[%clk 0:02:58]} 8. Bg2 {[%clk 0:02:50]}  Na6 {[%clk 0:02:58]} 9. O-O {[%clk 0:02:49]}  cxd5 {[%clk 0:02:58]} 10. cxd5 {[%clk 0:02:48]}  Nc7 {[%clk 0:02:57]} 11. e4 {[%clk 0:02:42]}  Ng4 {[%clk 0:02:27]} 12. Bg5 {[%clk 0:01:58]}  f6 {[%clk 0:02:17]} 13. dxe6 {[%clk 0:01:45]}  dxe6 {[%clk 0:02:15]} 14. Bd2 {[%clk 0:01:44]}  Qe7 {[%clk 0:02:09]} 15. h3 {[%clk 0:01:35]}  Ne5 {[%clk 0:02:10]} 16. Nxe5 {[%clk 0:01:33]}  Bxe5 {[%clk 0:02:09]} 17. Qb3 {[%clk 0:01:29]}  Rfd8 {[%clk 0:02:07]} 18. Rfd1 {[%clk 0:01:29]}  Rd3 {[%clk 0:01:50]} 19. Be3 {[%clk 0:01:15]}  Rad8 {[%clk 0:01:50]} 20. Rxd3 {[%clk 0:01:12]}  Rxd3 {[%clk 0:01:51]} 21. Rd1 {[%clk 0:01:12]}  Qd7 {[%clk 0:01:43]} 22. Rxd3 {[%clk 0:01:09]}  Qxd3 {[%clk 0:01:43]} 23. Qd1 {[%clk 0:01:08]}  Ba6 {[%clk 0:01:37]} 24. Qxd3 {[%clk 0:00:56]}  Bxd3 {[%clk 0:01:37]} 25. Bd2 {[%clk 0:00:52]}  Kf7 {[%clk 0:01:30]} 26. b4 {[%clk 0:00:27]}  Ne8 {[%clk 0:01:20]} 27. f4 {[%clk 0:00:21]}  Bd4+ {[%clk 0:01:18]} 28. Kh2 {[%clk 0:00:21]}  Nd6 {[%clk 0:01:18]} 29. e5 {[%clk 0:00:15]}  Nc4 {[%clk 0:01:17]} 30. Be1 {[%clk 0:00:13]}  Nxa3 {[%clk 0:01:13]} 31. exf6 {[%clk 0:00:13]}  gxf6 {[%clk 0:01:13]} 32. Ne4 {[%clk 0:00:13]}  Ke7 {[%clk 0:01:06]} 33. g4 {[%clk 0:00:11]}  Nc2 {[%clk 0:00:54]} 34. Bd2 {[%clk 0:00:10]}  Ne3 {[%clk 0:00:54]} 35. Bf3 {[%clk 0:00:07]}  Nf1+ {[%clk 0:00:52]} 36. Kg2 {[%clk 0:00:02]}  Bxe4 {[%clk 0:00:49]} 0-1

[Event "January 2 Late 2024"]
[Site "https://www.chess.com"]
[Date "2024.01.02"]
[Round "6"]
[White "Delorme, Axel"]
[Black "Spata, German"]
[Result "1-0"]
[Board "80"]
[TimeControl "180+1"]
[WhiteFideId "632023"]
[BlackFideId "113026"]
[WhiteElo "2488"]
[BlackElo "2655"]
[WhiteTeam "FRA"]
[BlackTeam "ARG"]
[WhiteClock "0:00:08"]
[BlackClock "0:00:00"]

1. e4 {[%clk 0:03:00]}  g6 {[%clk 0:02:52]} 2. d4 {[%clk 0:03:00]}  Bg7 {[%clk 0:02:51]} 3. Nc3 {[%clk 0:03:00]}  d6 {[%clk 0:02:51]} 4. Be3 {[%clk 0:02:59]}  a6 {[%clk 0:02:49]} 5. a4 {[%clk 0:02:55]}  b6 {[%clk 0:02:47]} 6. Qd2 {[%clk 0:02:55]}  c5 {[%clk 0:02:46]} 7. a5 {[%clk 0:02:45]}  Nd7 {[%clk 0:02:32]} 8. axb6 {[%clk 0:02:43]}  cxd4 {[%clk 0:02:13]} 9. Bxd4 {[%clk 0:02:42]}  Bxd4 {[%clk 0:02:10]} 10. Qxd4 {[%clk 0:02:43]}  Ngf6 {[%clk 0:02:08]} 11. Nd5 {[%clk 0:02:38]}  O-O {[%clk 0:01:58]} 12. Nxf6+ {[%clk 0:02:36]}  Nxf6 {[%clk 0:01:50]} 13. Nf3 {[%clk 0:02:31]}  Rb8 {[%clk 0:01:46]} 14. Bxa6 {[%clk 0:02:28]}  Qxb6 {[%clk 0:01:40]} 15. Bxc8 {[%clk 0:02:23]}  Qxd4 {[%clk 0:01:25]} 16. Nxd4 {[%clk 0:02:24]}  Rfxc8 {[%clk 0:01:25]} 17. O-O-O {[%clk 0:02:20]}  Nxe4 {[%clk 0:01:24]} 18. Rhf1 {[%clk 0:02:20]}  e6 {[%clk 0:01:15]} 19. f3 {[%clk 0:02:18]}  Nc5 {[%clk 0:01:13]} 20. Kb1 {[%clk 0:02:15]}  d5 {[%clk 0:01:06]} 21. Rfe1 {[%clk 0:02:09]}  Rb4 {[%clk 0:00:54]} 22. b3 {[%clk 0:02:02]}  Kg7 {[%clk 0:00:43]} 23. Kb2 {[%clk 0:01:59]}  Ra8 {[%clk 0:00:30]} 24. c3 {[%clk 0:01:49]}  Rb7 {[%clk 0:00:23]} 25. Ra1 {[%clk 0:01:50]}  Rab8 {[%clk 0:00:17]} 26. b4 {[%clk 0:01:03]}  Nd3+ {[%clk 0:00:15]} 27. Kb3 {[%clk 0:01:04]}  Nxe1 {[%clk 0:00:15]} 28. Rxe1 {[%clk 0:01:04]}  Ra8 {[%clk 0:00:14]} 29. b5 {[%clk 0:01:04]}  Ra5 {[%clk 0:00:14]} 30. Kb4 {[%clk 0:01:03]}  Ra2 {[%clk 0:00:14]} 31. Re2 {[%clk 0:01:01]}  Rxe2 {[%clk 0:00:08]} 32. Nxe2 {[%clk 0:01:02]}  Kf6 {[%clk 0:00:08]} 33. Kc5 {[%clk 0:00:57]}  Ke7 {[%clk 0:00:07]} 34. Kc6 {[%clk 0:00:56]}  Rb8 {[%clk 0:00:07]} 35. b6 {[%clk 0:00:54]}  Rc8+ {[%clk 0:00:06]} 36. Kb5 {[%clk 0:00:50]}  Kd6 {[%clk 0:00:04]} 37. b7 {[%clk 0:00:49]}  Rb8 {[%clk 0:00:04]} 38. Kb6 {[%clk 0:00:49]}  e5 {[%clk 0:00:03]} 39. g4 {[%clk 0:00:37]}  f6 {[%clk 0:00:02]} 40. h3 {[%clk 0:00:34]}  Rxb7+ {[%clk 0:00:01]} 41. Kxb7 {[%clk 0:00:34]}  Kc5 {[%clk 0:00:02]} 42. Kc7 {[%clk 0:00:32]}  Kc4 {[%clk 0:00:03]} 43. Kd6 {[%clk 0:00:30]}  d4 {[%clk 0:00:03]} 44. cxd4 {[%clk 0:00:31]}  exd4 {[%clk 0:00:03]} 45. Nxd4 {[%clk 0:00:11]}  Kxd4 {[%clk 0:00:04]} 46. Ke6 {[%clk 0:00:07]}  Ke3 {[%clk 0:00:05]} 47. Kxf6 {[%clk 0:00:07]}  Kxf3 {[%clk 0:00:05]} 48. Kg7 {[%clk 0:00:08]}  Kg3 {[%clk 0:00:05]} 49. Kxh7 {[%clk 0:00:07]}  Kxh3 {[%clk 0:00:06]} 50. g5 {[%clk 0:00:07]}  Kg4 {[%clk 0:00:00]} 51. Kxg6 {[%clk 0:00:08]} 1-0

[Event "January 2 Late 2024"]
[Site "https://www.chess.com"]
[Date "2024.01.02"]
[Round "6"]
[White "Agibileg, Uurtsaikh"]
[Black "Flynn, Jacob"]
[Result "1-0"]
[Board "81"]
[TimeControl "180+1"]
[WhiteFideId "4901606"]
[BlackFideId "2509393"]
[WhiteElo "2653"]
[BlackElo "2487"]
[WhiteTeam "MGL"]
[BlackTeam "IRL"]
[WhiteClock "0:02:46"]
[BlackClock "0:01:31"]

1. d4 {[%clk 0:03:00]}  d5 {[%clk 0:02:56]} 2. c4 {[%clk 0:03:00]}  e6 {[%clk 0:02:56]} 3. Nc3 {[%clk 0:02:58]}  Nf6 {[%clk 0:02:56]} 4. cxd5 {[%clk 0:02:58]}  exd5 {[%clk 0:02:56]} 5. Bg5 {[%clk 0:02:57]}  c6 {[%clk 0:02:57]} 6. e3 {[%clk 0:02:56]}  h6 {[%clk 0:02:57]} 7. Bh4 {[%clk 0:02:56]}  Be7 {[%clk 0:02:57]} 8. Bd3 {[%clk 0:02:55]}  O-O {[%clk 0:02:58]} 9. Nge2 {[%clk 0:02:56]}  Re8 {[%clk 0:02:56]} 10. Qc2 {[%clk 0:02:55]}  Nbd7 {[%clk 0:02:56]} 11. O-O {[%clk 0:02:56]}  a5 {[%clk 0:02:57]} 12. f3 {[%clk 0:02:56]}  b5 {[%clk 0:02:57]} 13. Rae1 {[%clk 0:02:56]}  Ba6 {[%clk 0:02:52]} 14. Kh1 {[%clk 0:02:52]}  b4 {[%clk 0:02:37]} 15. Bxa6 {[%clk 0:02:52]}  Rxa6 {[%clk 0:02:36]} 16. Na4 {[%clk 0:02:52]}  Qb8 {[%clk 0:02:06]} 17. e4 {[%clk 0:02:49]}  dxe4 {[%clk 0:02:00]} 18. fxe4 {[%clk 0:02:49]}  Ng4 {[%clk 0:02:00]} 19. Bg3 {[%clk 0:02:47]}  Bd6 {[%clk 0:01:42]} 20. Qc4 {[%clk 0:02:47]}  Qb5 {[%clk 0:01:34]} 21. Qxf7+ {[%clk 0:02:47]}  Kh7 {[%clk 0:01:31]} 22. Qxe8 {[%clk 0:02:46]} 1-0

[Event "January 2 Late 2024"]
[Site "https://www.chess.com"]
[Date "2024.01.02"]
[Round "6"]
[White "Bochnicka, Vladimir"]
[Black "Mirzoev, Azer"]
[Result "0-1"]
[Board "82"]
[TimeControl "180+1"]
[WhiteFideId "14943450"]
[BlackFideId "13400304"]
[WhiteElo "2486"]
[BlackElo "2652"]
[WhiteTeam "SVK"]
[BlackTeam "AZE"]
[WhiteClock "0:00:00"]
[BlackClock "0:00:18"]

1. e4 {[%clk 0:03:00]}  c5 {[%clk 0:03:00]} 2. Nf3 {[%clk 0:03:01]}  e6 {[%clk 0:03:01]} 3. g3 {[%clk 0:03:01]}  a6 {[%clk 0:03:01]} 4. Bg2 {[%clk 0:03:01]}  b5 {[%clk 0:03:02]} 5. O-O {[%clk 0:03:00]}  Bb7 {[%clk 0:03:02]} 6. Re1 {[%clk 0:02:57]}  d6 {[%clk 0:03:01]} 7. d3 {[%clk 0:02:56]}  Nf6 {[%clk 0:03:00]} 8. Nbd2 {[%clk 0:02:54]}  Be7 {[%clk 0:02:58]} 9. Nf1 {[%clk 0:02:51]}  Nc6 {[%clk 0:02:58]} 10. c3 {[%clk 0:02:48]}  O-O {[%clk 0:02:49]} 11. h3 {[%clk 0:02:46]}  b4 {[%clk 0:02:48]} 12. Be3 {[%clk 0:02:44]}  bxc3 {[%clk 0:02:46]} 13. bxc3 {[%clk 0:02:44]}  Qa5 {[%clk 0:02:46]} 14. Qd2 {[%clk 0:02:43]}  Rab8 {[%clk 0:02:46]} 15. Bf4 {[%clk 0:02:15]}  Nd7 {[%clk 0:02:44]} 16. d4 {[%clk 0:02:09]}  cxd4 {[%clk 0:02:43]} 17. cxd4 {[%clk 0:02:09]}  Qxd2 {[%clk 0:02:43]} 18. N1xd2 {[%clk 0:02:09]}  Nb4 {[%clk 0:02:41]} 19. Rab1 {[%clk 0:01:59]}  Ba8 {[%clk 0:02:39]} 20. Bf1 {[%clk 0:01:54]}  a5 {[%clk 0:02:29]} 21. a3 {[%clk 0:01:47]}  Nc2 {[%clk 0:02:28]} 22. Rec1 {[%clk 0:01:47]}  Rxb1 {[%clk 0:02:12]} 23. Rxb1 {[%clk 0:01:38]}  h6 {[%clk 0:01:58]} 24. Bd3 {[%clk 0:01:30]}  Nxa3 {[%clk 0:01:54]} 25. Ra1 {[%clk 0:01:29]}  d5 {[%clk 0:01:54]} 26. exd5 {[%clk 0:01:00]}  Bxd5 {[%clk 0:01:54]} 27. Bc7 {[%clk 0:00:35]}  Ra8 {[%clk 0:01:46]} 28. Ne5 {[%clk 0:00:32]}  Nxe5 {[%clk 0:01:44]} 29. dxe5 {[%clk 0:00:33]}  Bb4 {[%clk 0:01:42]} 30. Ne4 {[%clk 0:00:30]}  Nc4 {[%clk 0:01:23]} 31. Rc1 {[%clk 0:00:30]}  Nd2 {[%clk 0:01:12]} 32. Nxd2 {[%clk 0:00:26]}  Bxd2 {[%clk 0:01:13]} 33. Rc2 {[%clk 0:00:24]}  Bb4 {[%clk 0:01:12]} 34. Bb5 {[%clk 0:00:21]}  g5 {[%clk 0:00:54]} 35. Bd6 {[%clk 0:00:20]}  Kg7 {[%clk 0:00:41]} 36. f4 {[%clk 0:00:13]}  Rd8 {[%clk 0:00:39]} 37. Bc7 {[%clk 0:00:05]}  Rc8 {[%clk 0:00:38]} 38. Ba4 {[%clk 0:00:05]}  Be4 {[%clk 0:00:31]} 39. Rc4 {[%clk 0:00:05]}  Bd3 {[%clk 0:00:30]} 40. Rc1 {[%clk 0:00:05]}  Bd2 {[%clk 0:00:24]} 41. Rc6 {[%clk 0:00:05]}  gxf4 {[%clk 0:00:22]} 42. gxf4 {[%clk 0:00:05]}  Bxf4 {[%clk 0:00:22]} 43. Rc3 {[%clk 0:00:05]}  Bg6 {[%clk 0:00:19]} 44. Bxa5 {[%clk 0:00:00]}  Ra8 {[%clk 0:00:18]} 0-1

[Event "January 2 Late 2024"]
[Site "https://www.chess.com"]
[Date "2024.01.02"]
[Round "6"]
[White "Olsen, Filip Boe"]
[Black "Suvorov, Alexander"]
[Result "1/2-1/2"]
[Board "83"]
[TimeControl "180+1"]
[WhiteFideId "1440640"]
[BlackFideId "12977063"]
[WhiteElo "2649"]
[BlackElo "2478"]
[WhiteTeam "DEN"]
[BlackTeam "GER"]
[WhiteClock "0:00:07"]
[BlackClock "0:00:09"]

1. Nf3 {[%clk 0:03:00]}  d6 {[%clk 0:02:56]} 2. d4 {[%clk 0:02:59]}  Nf6 {[%clk 0:02:56]} 3. g3 {[%clk 0:02:59]}  Nbd7 {[%clk 0:02:50]} 4. Bg2 {[%clk 0:02:58]}  e5 {[%clk 0:02:50]} 5. dxe5 {[%clk 0:02:55]}  dxe5 {[%clk 0:02:47]} 6. O-O {[%clk 0:02:55]}  Bd6 {[%clk 0:02:41]} 7. Nbd2 {[%clk 0:02:51]}  Qe7 {[%clk 0:02:38]} 8. Nc4 {[%clk 0:02:50]}  Bc5 {[%clk 0:02:31]} 9. a3 {[%clk 0:02:29]}  a5 {[%clk 0:02:23]} 10. Be3 {[%clk 0:02:26]}  O-O {[%clk 0:02:16]} 11. Qc1 {[%clk 0:02:20]}  h6 {[%clk 0:02:13]} 12. Nh4 {[%clk 0:02:15]}  Nb6 {[%clk 0:02:05]} 13. Nxb6 {[%clk 0:02:03]}  cxb6 {[%clk 0:02:03]} 14. Nf3 {[%clk 0:01:46]}  Bf5 {[%clk 0:01:57]} 15. Ne1 {[%clk 0:01:30]}  Rac8 {[%clk 0:01:51]} 16. c3 {[%clk 0:01:27]}  Be4 {[%clk 0:01:44]} 17. Nd3 {[%clk 0:01:24]}  Bxg2 {[%clk 0:01:42]} 18. Kxg2 {[%clk 0:01:25]}  Nd5 {[%clk 0:01:39]} 19. Bxc5 {[%clk 0:01:23]}  bxc5 {[%clk 0:01:39]} 20. c4 {[%clk 0:01:24]}  Nb6 {[%clk 0:01:30]} 21. Qc3 {[%clk 0:01:24]}  e4 {[%clk 0:01:13]} 22. Nf4 {[%clk 0:01:22]}  a4 {[%clk 0:01:08]} 23. Rfd1 {[%clk 0:01:10]}  Rcd8 {[%clk 0:01:06]} 24. Rac1 {[%clk 0:01:06]}  g6 {[%clk 0:00:56]} 25. e3 {[%clk 0:00:49]}  h5 {[%clk 0:00:51]} 26. h4 {[%clk 0:00:47]}  Rd7 {[%clk 0:00:42]} 27. Rxd7 {[%clk 0:00:35]}  Qxd7 {[%clk 0:00:42]} 28. Qa5 {[%clk 0:00:34]}  Qc6 {[%clk 0:00:38]} 29. Nd5 {[%clk 0:00:25]}  Nxd5 {[%clk 0:00:30]} 30. cxd5 {[%clk 0:00:26]}  Qxd5 {[%clk 0:00:31]} 31. Qxc5 {[%clk 0:00:26]}  Qb3 {[%clk 0:00:23]} 32. Qc2 {[%clk 0:00:23]}  Qd5 {[%clk 0:00:05]} 33. Qxa4 {[%clk 0:00:22]}  Rd8 {[%clk 0:00:05]} 34. Qc4 {[%clk 0:00:17]}  Qf5 {[%clk 0:00:05]} 35. Qe2 {[%clk 0:00:17]}  Rd7 {[%clk 0:00:05]} 36. Rc8+ {[%clk 0:00:17]}  Kg7 {[%clk 0:00:05]} 37. Rc4 {[%clk 0:00:17]}  Rd6 {[%clk 0:00:05]} 38. Rd4 {[%clk 0:00:15]}  Rf6 {[%clk 0:00:06]} 39. b4 {[%clk 0:00:13]}  g5 {[%clk 0:00:05]} 40. hxg5 {[%clk 0:00:11]}  Qxg5 {[%clk 0:00:06]} 41. Rc4 {[%clk 0:00:11]}  h4 {[%clk 0:00:07]} 42. Rc5 {[%clk 0:00:11]}  Qg6 {[%clk 0:00:06]} 43. Qh5 {[%clk 0:00:08]}  hxg3 {[%clk 0:00:06]} 44. Qxg6+ {[%clk 0:00:08]}  Kxg6 {[%clk 0:00:06]} 45. Kxg3 {[%clk 0:00:08]}  Ra6 {[%clk 0:00:07]} 46. Ra5 {[%clk 0:00:08]}  Rxa5 {[%clk 0:00:07]} 47. bxa5 {[%clk 0:00:09]}  Kf5 {[%clk 0:00:06]} 48. a4 {[%clk 0:00:07]}  Kg5 {[%clk 0:00:07]} 49. Kg2 {[%clk 0:00:04]}  Kg4 {[%clk 0:00:07]} 50. Kf1 {[%clk 0:00:04]}  Kf3 {[%clk 0:00:07]} 51. Ke1 {[%clk 0:00:04]}  f6 {[%clk 0:00:06]} 52. Kf1 {[%clk 0:00:04]}  f5 {[%clk 0:00:06]} 53. Ke1 {[%clk 0:00:05]}  Kg2 {[%clk 0:00:07]} 54. Ke2 {[%clk 0:00:05]}  Kg1 {[%clk 0:00:07]} 55. Ke1 {[%clk 0:00:05]}  Kg2 {[%clk 0:00:08]} 56. Ke2 {[%clk 0:00:06]}  Kg1 {[%clk 0:00:08]} 57. Ke1 {[%clk 0:00:07]}  Kg2 {[%clk 0:00:09]} 1/2-1/2

[Event "January 2 Late 2024"]
[Site "https://www.chess.com"]
[Date "2024.01.02"]
[Round "6"]
[White "Niedbala, Bartlomiej"]
[Black "Toktomushev, Teimur"]
[Result "1-0"]
[Board "84"]
[TimeControl "180+1"]
[WhiteFideId "21834008"]
[BlackFideId "14176726"]
[WhiteElo "2648"]
[BlackElo "2470"]
[WhiteTeam "POL"]
[BlackTeam "UKR"]
[WhiteClock "0:01:14"]
[BlackClock "0:00:00"]

1. e4 {[%clk 0:03:00]}  c5 {[%clk 0:02:58]} 2. Nf3 {[%clk 0:03:00]}  e6 {[%clk 0:02:58]} 3. d4 {[%clk 0:03:00]}  cxd4 {[%clk 0:02:59]} 4. Nxd4 {[%clk 0:03:00]}  a6 {[%clk 0:03:00]} 5. c4 {[%clk 0:03:00]}  Nf6 {[%clk 0:02:59]} 6. Nc3 {[%clk 0:02:58]}  Qc7 {[%clk 0:02:59]} 7. a3 {[%clk 0:02:55]}  b6 {[%clk 0:02:59]} 8. Be3 {[%clk 0:02:45]}  Bb7 {[%clk 0:02:59]} 9. f3 {[%clk 0:02:46]}  Be7 {[%clk 0:02:58]} 10. Be2 {[%clk 0:02:45]}  O-O {[%clk 0:02:58]} 11. O-O {[%clk 0:02:41]}  d6 {[%clk 0:02:58]} 12. Rc1 {[%clk 0:02:38]}  Nbd7 {[%clk 0:02:59]} 13. b4 {[%clk 0:02:38]}  Rac8 {[%clk 0:02:59]} 14. Kh1 {[%clk 0:02:38]}  Qb8 {[%clk 0:03:00]} 15. Bg1 {[%clk 0:02:38]}  Ba8 {[%clk 0:02:54]} 16. Re1 {[%clk 0:02:37]}  Rc7 {[%clk 0:02:50]} 17. Bf1 {[%clk 0:02:24]}  Rfc8 {[%clk 0:02:48]} 18. b5 {[%clk 0:02:11]}  a5 {[%clk 0:02:10]} 19. f4 {[%clk 0:02:11]}  Nc5 {[%clk 0:01:34]} 20. e5 {[%clk 0:02:00]}  dxe5 {[%clk 0:00:48]} 21. fxe5 {[%clk 0:02:01]}  Nfd7 {[%clk 0:00:46]} 22. Qg4 {[%clk 0:02:01]}  Rd8 {[%clk 0:00:27]} 23. Re3 {[%clk 0:01:50]}  Rcc8 {[%clk 0:00:24]} 24. Rce1 {[%clk 0:01:46]}  g6 {[%clk 0:00:17]} 25. Qf4 {[%clk 0:01:36]}  a4 {[%clk 0:00:09]} 26. Rf3 {[%clk 0:01:35]}  Rf8 {[%clk 0:00:09]} 27. Rh3 {[%clk 0:01:31]}  Rfd8 {[%clk 0:00:05]} 28. Rxh7 {[%clk 0:01:20]}  Kxh7 {[%clk 0:00:04]} 29. Qxf7+ {[%clk 0:01:20]}  Kh8 {[%clk 0:00:04]} 30. Qxe7 {[%clk 0:01:16]}  Re8 {[%clk 0:00:01]} 31. Qg5 {[%clk 0:01:15]}  Rf8 {[%clk 0:00:01]} 32. Qh6+ {[%clk 0:01:13]}  Kg8 {[%clk 0:00:01]} 33. Qxg6+ {[%clk 0:01:14]}  Kh8 {[%clk 0:00:00]} 34. Re3 {[%clk 0:01:14]} 1-0